fUSD/lending_fUSD_20260203
["ID","MTS","AMOUNT","RATE_DAILY","PERIOD"]
[404407504,1770113441588,-2422.27967797,0.00016438,2]
[404407506,1770113441598,-2422.27967797,0.00016438,2]
[404407508,1770113441607,-2422.27967797,0.00016438,2]
[404407510,1770113441616,-2422.27967797,0.00016438,2]
[404407512,1770113441626,-2422.27967797,0.00016438,2]
[404407514,1770113441635,-2422.27967797,0.00016438,2]
[404407516,1770113441644,-2422.27967797,0.00016438,2]
[404407518,1770113441654,-2422.27967797,0.00016438,2]
[404407520,1770113441664,-2422.27967797,0.00016438,2]
[404407522,1770113441673,-5133.01,0.00016438,2]
[404407524,1770113441682,-800.0,0.00016438,2]
[404407526,1770113441692,-500.0,0.00016438,2]
[404407528,1770113441701,-200.0,0.00016438,2]
[404407530,1770113441711,-471.47764088,0.00016446,2]
[404407532,1770113441721,-1084.09055279,0.00016446,2]
[404407534,1770113441730,-1500.0,0.000165,2]
[404407536,1770113441739,-1000.0,0.00016515,2]
[404407538,1770113441748,-200.05997466,0.00016546,2]
[404407540,1770113441758,-2702.6419593,0.00016612,2]
[404407542,1770113441768,-343.53,0.00016631,2]
[404407544,1770113441779,-150.0,0.00016667,7]
[404407546,1770113441788,-443.998376,0.00016667,7]
[404407548,1770113441798,-737.996752,0.00016667,7]
[404407550,1770113441808,-1031.995128,0.00016667,7]
[404407552,1770113441818,-1325.993504,0.00016667,7]
[404407554,1770113441827,-1619.99188,0.00016667,7]
[404407556,1770113441836,-1913.990256,0.00016667,7]
[404407558,1770113441846,-2207.988632,0.00016667,7]
[404407560,1770113441855,-2501.987008,0.00016667,7]
[404407562,1770113441864,-2795.985384,0.00016667,7]
[404407564,1770113441873,-150.0,0.00016778,2]
[404407566,1770113441882,-30000.0,0.00016846,2]
[404407568,1770113441891,-200.0,0.00016983,2]
[404407570,1770113441899,-500.0,0.00017,7]
[404407572,1770113441910,-500.0,0.00017,7]
[404407574,1770113441919,-500.0,0.00017,7]
[404407576,1770113441928,-500.0,0.00017,7]
[404407577,1770113441937,-500.0,0.00017,7]
[404407579,1770113441946,-500.0,0.00017,7]
[404407581,1770113441955,-500.0,0.00017,7]
[404407583,1770113441964,-500.0,0.00017,7]
[404407584,1770113441973,-500.0,0.00017,7]
[404407586,1770113441983,-500.0,0.00017,7]
[404407588,1770113441992,-500.0,0.00017,7]
[404407590,1770113442002,-500.0,0.00017,7]
[404407591,1770113442012,-500.0,0.00017,7]
[404407593,1770113442022,-500.0,0.00017,7]
[404407595,1770113442032,-500.0,0.00017,7]
[404407597,1770113442041,-500.0,0.00017,7]
[404407599,1770113442051,-500.0,0.00017,7]
[404407600,1770113442060,-500.0,0.00017,7]
[404407602,1770113442070,-500.0,0.00017,7]
[404407604,1770113442080,-500.0,0.00017,7]
[404407606,1770113442094,-500.0,0.00017,7]
[404407608,1770113442104,-500.0,0.00017,7]
[404407610,1770113442115,-500.0,0.00017,7]
[404407612,1770113442124,-500.0,0.00017,7]
[404407614,1770113442134,-500.0,0.00017,7]
[404407615,1770113442143,-500.0,0.00017,7]
[404407617,1770113442153,-500.0,0.00017,7]
[404407619,1770113442162,-500.0,0.00017,7]
[404407621,1770113442171,-500.0,0.00017,7]
[404407623,1770113442181,-500.0,0.00017,7]
[404407624,1770113442191,-500.0,0.00017,7]
[404407626,1770113442201,-160.0,0.00017,7]
[404407628,1770113442210,-500.0,0.00017,7]
[404407630,1770113442219,-500.0,0.00017,7]
[404407632,1770113442228,-500.0,0.00017,7]
[404407634,1770113442237,-500.0,0.00017,7]
[404407636,1770113442246,-500.0,0.00017,7]
[404407637,1770113442255,-500.0,0.00017,7]
[404407639,1770113442264,-500.0,0.00017,7]
[404407641,1770113442273,-500.0,0.00017,7]
[404407643,1770113442282,-500.0,0.00017,7]
[404407644,1770113442291,-500.0,0.00017,7]
[404407646,1770113442300,-500.0,0.00017,7]
[404407648,1770113442308,-500.0,0.00017,7]
[404407650,1770113442317,-500.0,0.00017,7]
[404407651,1770113442326,-500.0,0.00017,7]
[404407653,1770113442335,-500.0,0.00017,7]
[404407655,1770113442344,-500.0,0.00017,7]
[404407657,1770113442353,-500.0,0.00017,7]
[404407659,1770113442362,-500.0,0.00017,7]
[404407661,1770113442371,-500.0,0.00017,7]
[404407663,1770113442381,-500.0,0.00017,7]
[404407664,1770113442390,-500.0,0.00017,7]
[404407666,1770113442399,-500.0,0.00017,7]
[404407668,1770113442408,-500.0,0.00017,7]
[404407670,1770113442418,-500.0,0.00017,7]
[404407671,1770113442427,-500.0,0.00017,7]
[404407673,1770113442437,-500.0,0.00017,7]
[404407675,1770113442446,-500.0,0.00017,7]
[404407677,1770113442457,-500.0,0.00017,7]
[404407679,1770113442466,-500.0,0.00017,7]
[404407681,1770113442476,-500.0,0.00017,7]
[404407683,1770113442485,-500.0,0.00017,7]
[404407685,1770113442494,-500.0,0.00017,7]
[404407687,1770113442504,-500.0,0.00017,7]
[404407708,1770113442725,-500.0,0.00017,7]
[404407710,1770113442734,-500.0,0.00017,7]
[404407712,1770113442744,-500.0,0.00017,7]
[404407715,1770113442753,-500.0,0.00017,7]
[404407718,1770113442762,-500.0,0.00017,7]
[404407721,1770113442775,-500.0,0.00017,7]
[404407724,1770113442787,-500.0,0.00017,7]
[404407727,1770113442795,-500.0,0.00017,7]
[404407729,1770113442805,-500.0,0.00017,7]
[404407732,1770113442815,-500.0,0.00017,7]
[404407735,1770113442829,-500.0,0.00017,7]
[404407737,1770113442839,-500.0,0.00017,7]
[404407738,1770113442848,-500.0,0.00017,7]
[404407739,1770113442857,-500.0,0.00017,7]
[404407740,1770113442866,-500.0,0.00017,7]
[404407741,1770113442875,-500.0,0.00017,7]
[404407742,1770113442883,-500.0,0.00017,7]
[404407743,1770113442892,-500.0,0.00017,7]
[404407744,1770113442901,-500.0,0.00017,7]
[404407745,1770113442910,-404.8,0.00017,7]
[404407746,1770113442919,-500.0,0.00017,7]
[404407747,1770113442928,-500.0,0.00017,7]
[404407749,1770113442938,-500.0,0.00017,7]
[404407751,1770113442947,-500.0,0.00017,7]
[404407753,1770113442956,-500.0,0.00017,7]
[404407755,1770113442965,-500.0,0.00017,7]
[404407757,1770113442974,-500.0,0.00017,7]
[404407759,1770113442983,-500.0,0.00017,7]
[404407761,1770113442993,-500.0,0.00017,7]
[404407763,1770113443002,-500.0,0.00017,7]
[404407765,1770113443011,-500.0,0.00017,7]
[404407767,1770113443021,-500.0,0.00017,7]
[404407769,1770113443030,-500.0,0.00017,7]
[404407771,1770113443039,-500.0,0.00017,7]
[404407773,1770113443048,-500.0,0.00017,7]
[404407775,1770113443057,-500.0,0.00017,7]
[404407777,1770113443066,-500.0,0.00017,7]
[404407779,1770113443075,-500.0,0.00017,7]
[404407781,1770113443084,-500.0,0.00017,7]
[404407783,1770113443095,-166.51,0.00017,7]
[404407785,1770113443104,-500.0,0.00017,7]
[404407787,1770113443114,-1500.0,0.00017,2]
[404407789,1770113443124,-300.0,0.00017,2]
[404407791,1770113443134,-2820.0,0.00017013,2]
[404407793,1770113443143,-2820.0,0.00017042,2]
[404407795,1770113443152,-500.0,0.00017075,2]
[404407797,1770113443162,-1000.0,0.00017112,2]
[404407799,1770113443171,-1000.0,0.00017178,7]
[404407801,1770113443180,-150.0,0.00017186,7]
[404407803,1770113443188,-374.613885,0.00017186,7]
[404407805,1770113443198,-599.227771,0.00017186,7]
[404407807,1770113443207,-823.841657,0.00017186,7]
[404407809,1770113443216,-1048.455543,0.00017186,7]
[404407811,1770113443226,-1273.069429,0.00017186,7]
[404407813,1770113443235,-1497.683314,0.00017186,7]
[404407815,1770113443244,-1722.2972,0.00017186,7]
[404407817,1770113443253,-1946.911086,0.00017186,7]
[404407819,1770113443262,-2171.524972,0.00017186,7]
[404407821,1770113443271,-1000.0,0.0001726,2]
[404407823,1770113443280,-386.87667747,0.00017316,2]
[404407825,1770113443289,-150.0,0.00017368,2]
[404407827,1770113443298,-150.0,0.00017368,2]
[404407829,1770113443308,-150.0,0.00017368,2]
[404407831,1770113443317,-150.0,0.00017368,2]
[404407833,1770113443326,-172.53,0.00017374,2]
[404407835,1770113443335,-172.53,0.00017374,2]
[404407837,1770113443345,-172.53,0.00017374,2]
[404407839,1770113443354,-172.53,0.00017374,2]
[404407841,1770113443363,-344.98,0.00017374,2]
[404407843,1770113443373,-172.53,0.00017374,2]
[404407845,1770113443382,-5888.0,0.00017399,2]
[404407847,1770113443391,-5888.0,0.00017429,2]
[404407849,1770113443400,-200.0,0.00017446,2]
[404407851,1770113443409,-1400.0,0.00017452,7]
[404407853,1770113443418,-200.0,0.00017454,2]
[404407855,1770113443427,-5888.0,0.00017478,2]
[404407857,1770113443436,-2820.0,0.00017479,2]
[404407859,1770113443445,-200.0,0.00017479,2]
[404407862,1770113443454,-160.0,0.000175,7]
[404407865,1770113443463,-1500.0,0.000175,2]
[404407868,1770113443472,-343.53,0.00017509,2]
[404407870,1770113443481,-1000.0,0.00017534,2]
[404407872,1770113443492,-200.0,0.00017556,2]
[404407874,1770113443501,-150.0,0.00017556,2]
[404407876,1770113443510,-213.0,0.00017556,2]
[404407879,1770113443519,-150.632,0.00017556,2]
[404407883,1770113443529,-171.889,0.00017556,2]
[404407887,1770113443538,-272.463,0.00017556,2]
[404407889,1770113443550,-170.0,0.00017556,2]
[404407891,1770113443559,-150.04,0.00017556,2]
[404407893,1770113443568,-150.0,0.00017556,2]
[404407895,1770113443578,-150.0,0.00017556,2]
[404407897,1770113443588,-150.08,0.00017556,2]
[404407899,1770113443597,-151.0,0.00017556,2]
[404407901,1770113443607,-1335.0,0.00017556,2]
[404407903,1770113443617,-616.0,0.00017556,2]
[404407905,1770113443627,-3481.0,0.00017556,2]
[404407907,1770113443636,-1271.0,0.00017556,2]
[404407909,1770113443646,-150.0,0.00017556,2]
[404407911,1770113443655,-1205.0,0.00017556,2]
[404407913,1770113443664,-917.0,0.00017556,2]
[404407915,1770113443673,-568.0,0.00017556,2]
[404407917,1770113443682,-1316.0,0.00017556,2]
[404407919,1770113443692,-2471.026,0.00017556,2]
[404407921,1770113443702,-6580.0,0.00017556,2]
[404407923,1770113443711,-157.82,0.00017627,2]
[404407926,1770113443721,-587.8745622,0.0001764,2]
[404407928,1770113443730,-1000.0,0.00017709,2]
[404407930,1770113443741,-2820.0,0.00017716,2]
[404407932,1770113443751,-1000.0,0.00017723,2]
[404407934,1770113443760,-1000.0,0.00017726,2]
[404407936,1770113443773,-800.0,0.00017726,7]
[404407938,1770113443782,-1000.0,0.00017729,2]
[404407940,1770113443791,-1000.0,0.0001773,2]
[404407942,1770113443807,-1000.0,0.0001773,2]
[404407944,1770113443816,-150.0,0.00017739,2]
[404407946,1770113443825,-1000.0,0.00017754,2]
[404407948,1770113443835,-157.95285948,0.0001777,2]
[404407950,1770113443844,-150.0,0.00017777,2]
[404407952,1770113443855,-1000.0,0.00017781,2]
[404407954,1770113443864,-150.0,0.00017782,2]
[404407956,1770113443873,-150.0,0.00017789,2]
[404407958,1770113443882,-1000.0,0.00017795,2]
[404407960,1770113443890,-150.0,0.00017795,2]
[404407962,1770113443899,-1000.0,0.00017803,2]
[404407964,1770113443908,-1000.0,0.00017803,2]
[404407966,1770113443918,-250.0,0.00017808,20]
[404407968,1770113443927,-250.0,0.00017808,20]
[404407970,1770113443936,-250.0,0.00017808,20]
[404407972,1770113443945,-250.0,0.00017808,20]
[404407974,1770113443955,-250.0,0.00017808,20]
[404407976,1770113443964,-285.815377,0.00017808,20]
[404407978,1770113443973,-1000.0,0.00017808,2]
[404407980,1770113443982,-2820.0,0.00017821,2]
[404407982,1770113443991,-150.0,0.00017822,2]
[404407984,1770113444000,-150.0,0.00017824,2]
[404407986,1770113444010,-1000.0,0.00017825,2]
[404407988,1770113444019,-1000.0,0.00017833,2]
[404407990,1770113444028,-1000.0,0.00017834,2]
[404407992,1770113444037,-1000.0,0.00017843,2]
[404407994,1770113444047,-1000.0,0.00017849,2]
[404407996,1770113444056,-1000.0,0.00017853,2]
[404407998,1770113444065,-200.0,0.00017855,2]
[404408000,1770113444075,-1000.0,0.00017856,2]
[404408002,1770113444084,-200.0,0.00017856,2]
[404408004,1770113444094,-150.0,0.00017858,2]
[404408006,1770113444103,-1000.0,0.00017869,2]
[404408008,1770113444113,-1000.0,0.00017871,2]
[404408010,1770113444123,-25000.0,0.00017874,3]
[404408012,1770113444134,-1000.0,0.00017875,2]
[404408014,1770113444143,-150.0,0.00017881,2]
[404408016,1770113444152,-25000.0,0.00017882,3]
[404408018,1770113444162,-25000.0,0.00017891,3]
[404408020,1770113444171,-174.61919141,0.00017899,3]
[404408022,1770113444180,-181.08010149,0.00017899,3]
[404408024,1770113444190,-187.78006525,0.00017899,3]
[404408026,1770113444199,-194.72792766,0.00017899,3]
[404408028,1770113444208,-201.93286099,0.00017899,3]
[404408030,1770113444217,-209.40437684,0.00017899,3]
[404408032,1770113444226,-217.15233878,0.00017899,3]
[404408034,1770113444235,-225.18697532,0.00017899,3]
[404408036,1770113444244,-233.51889341,0.00017899,3]
[404408038,1770113444254,-242.15909246,0.00017899,3]
[404408040,1770113444263,-251.11897888,0.00017899,3]
[404408042,1770113444272,-260.4103811,0.00017899,3]
[404408044,1770113444281,-270.0455652,0.00017899,3]
[404408046,1770113444290,-280.03725112,0.00017899,3]
[404408048,1770113444299,-290.39862941,0.00017899,3]
[404408050,1770113444308,-301.1433787,0.00017899,3]
[404408052,1770113444317,-578.20924308,0.00017899,3]
[404408054,1770113444327,-599.60298507,0.00017899,3]
[404408056,1770113444336,-621.78829552,0.00017899,3]
[404408058,1770113444345,-470.75459687,0.00017899,3]
[404408060,1770113444355,-2000.0,0.000179,2]
[404408063,1770113444364,-23106.24832845,0.000179,3]
[404408064,1770113444373,-160.0,0.000179,3]
[404408066,1770113444384,-25000.0,0.000179,3]
[404408068,1770113444394,-267.46801116,0.000179,2]
[404408070,1770113444403,-2702.6419593,0.000179,2]
[404408072,1770113444412,-5394.28168771,0.000179,2]
[404408074,1770113444421,-1000.0,0.00017905,2]
[404408076,1770113444430,-983.42551089,0.00017906,2]
[404408078,1770113444440,-1000.0,0.00017915,2]
[404408080,1770113444449,-1000.0,0.00017926,2]
[404408082,1770113444458,-1000.0,0.00017928,2]
[404408084,1770113444467,-5888.0,0.00017943,2]
[404408086,1770113444476,-150.0,0.00017946,2]
[404408088,1770113444486,-150.0,0.00017947,2]
[404408090,1770113444495,-150.0,0.00017952,2]
[404408092,1770113444504,-1000.0,0.00017955,2]
[404408094,1770113444513,-1000.0,0.00017962,2]
[404408096,1770113444522,-1000.0,0.00017964,2]
[404408098,1770113444530,-5888.0,0.00017965,2]
[404408100,1770113444539,-150.0,0.00017972,2]
[404408102,1770113444548,-500.0,0.00017982,2]
[404408104,1770113444557,-1000.0,0.00017986,2]
[404408106,1770113444568,-200.0,0.00017987,2]
[404408108,1770113444577,-150.0,0.00017996,2]
[404408110,1770113444586,-17762.2235547,0.00017997,2]
[404408113,1770113444596,-4847.6168248,0.00017997,2]
[404408115,1770113444606,-151.0,0.00017997,2]
[404408117,1770113444614,-151.0,0.00017997,2]
[404408119,1770113444624,-300.0,0.00017999,2]
[404408121,1770113444633,-300.0,0.00017999,2]
[404408123,1770113444642,-300.0,0.00017999,2]
[404408125,1770113444650,-1525060.89458576,0.00018,2]
[404408166,1770113445105,-15775.24139532,0.0001382,2]
[404408168,1770113445114,-4851343.94418199,0.00018,2]
[404408170,1770113445123,-2557802.92036735,0.00018,2]
[404408172,1770113445134,-347.053942,0.00018,2]
[404408208,1770113445467,-8432.85403011,0.0001466,2]
[404408210,1770113445479,-1003.34533572,0.0001466,2]
[404408213,1770113445490,-840.10028332,0.0001466,2]
[404408215,1770113445506,-1908.95357177,0.0001466,2]
[404408292,1770113446215,-151.0,0.00012384,2]
[404408295,1770113446225,-3589.9881744,0.0001466,2]
[404408297,1770113446235,-81922.11923605,0.00018,2]
[404408299,1770113446248,-3803.74166559,0.00018,2]
[404408302,1770113446267,-12703.48655946,0.00018,2]
[404408342,1770113446642,-7750.0,0.00018,2]
[404408453,1770114359487,3614.96222808,8e-05,2]
[404408463,1770114632055,-7260.57737859,8.449e-05,2]
[404408465,1770114632067,-290.05642929,8.449e-05,2]
[404408466,1770114632080,-1727.69940483,8.449e-05,2]
[404408467,1770114632092,-4328.06566314,8.449e-05,2]
[404408468,1770114632117,-603.84235597,8.449e-05,2]
[404408469,1770114632129,-357.87831592,8.449e-05,2]
[404408470,1770114632168,-2701.61761818,8.449e-05,2]
[404408471,1770114632183,-7701.46283408,8.449e-05,2]
[404408472,1770114632197,-151.0,8.48e-05,2]
[404408473,1770114632206,-627.41495303,8.482e-05,2]
[404408474,1770114632217,-1200.0,8.482e-05,2]
[404408475,1770114632227,-150.0,8.482e-05,2]
[404408476,1770114632238,-221.0,8.482e-05,2]
[404408477,1770114632247,-360.95256819,8.482e-05,2]
[404408478,1770114632256,-16771.03802782,8.483e-05,2]
[404408479,1770114632268,-413.403511,8.483e-05,2]
[404408480,1770114632289,-872.66531044,8.483e-05,2]
[404408481,1770114632300,-596.61311656,8.483e-05,2]
[404408482,1770114632311,-14361.84713073,8.483e-05,2]
[404408483,1770114632322,-2152.66125016,8.483e-05,2]
[404408484,1770114632333,-2062.13091084,8.483e-05,2]
[404408486,1770114632344,-4208.02539024,8.483e-05,2]
[404408487,1770114632356,-7072.7823092,8.483e-05,2]
[404408488,1770114632367,-510.78051524,8.483e-05,2]
[404408489,1770114632378,-926.05527075,8.483e-05,2]
[404408490,1770114632389,-188960.419,8.483e-05,2]
[404408491,1770114632409,-4554.73846656,8.483e-05,2]
[404408499,1770114638091,-1674.77036001,8.483e-05,2]
[404408502,1770114638146,-78610.30744717,8.483e-05,2]
[404408504,1770114638162,-450.58499,8.483e-05,2]
[404408509,1770114638204,-2510.8565844,8.483e-05,2]
[404408511,1770114638218,-13502.93973259,8.483e-05,2]
[404408513,1770114638264,-846.33812054,8.483e-05,2]
[404408514,1770114638370,-3158941.04255575,8.483e-05,2]
[404408515,1770114638380,-5394.28168772,8.509e-05,2]
[404408516,1770114638390,-405.54303416,8.509e-05,2]
[404408517,1770114638400,-250.0,8.51e-05,2]
[404408518,1770114638412,-6081.961,8.51e-05,2]
[404408519,1770114638423,-528.675,8.51e-05,2]
[404408520,1770114638433,-6309.0,8.548e-05,2]
[404408522,1770114638444,-250.0,8.553e-05,2]
[404408524,1770114638454,-212.7471933,8.583e-05,2]
[404408526,1770114638464,-182.8321623,8.583e-05,2]
[404408528,1770114638475,-500.0,8.583e-05,2]
[404408530,1770114638484,-500.0,8.583e-05,2]
[404408533,1770114638497,-500.0,8.583e-05,2]
[404408534,1770114638507,-500.0,8.583e-05,2]
[404408536,1770114638518,-497.42597254,8.583e-05,2]
[404408538,1770114638528,-277.82826282,8.596e-05,2]
[404408541,1770114638539,-400.0,8.6e-05,3]
[404408544,1770114638548,-277.82826282,8.681e-05,2]
[404408546,1770114638558,-10000.0,8.684e-05,2]
[404408548,1770114638569,-150.99,8.684e-05,2]
[404408550,1770114638578,-9999.99,8.684e-05,2]
[404408552,1770114638587,-900.0,8.7e-05,3]
[404408553,1770114638596,-150.99,8.781e-05,2]
[404408555,1770114638606,-151.0,8.781e-05,2]
[404408557,1770114638616,-33292.3487,8.784e-05,2]
[404408559,1770114638625,-9999.99,8.784e-05,2]
[404408561,1770114638635,-299.99,8.784e-05,2]
[404408563,1770114638645,-999.99,8.784e-05,2]
[404408565,1770114638655,-6484.12,8.784e-05,2]
[404408567,1770114638666,-1400.0,8.8e-05,3]
[404408569,1770114638676,-1600.0,8.824e-05,2]
[404408571,1770114638685,-1800.0,8.9e-05,3]
[404408573,1770114638695,-9418.33,8.929e-05,2]
[404408575,1770114638704,-2300.0,9e-05,3]
[404408578,1770114638715,-500.0,9.133e-05,2]
[404408579,1770114638725,-1852.42,9.161e-05,2]
[404408581,1770114638735,-12882.18,9.252e-05,2]
[404408583,1770114638744,-1680.0,9.33e-05,2]
[404408586,1770114638754,-255.0,9.33e-05,2]
[404408587,1770114638763,-300.0,9.33e-05,2]
[404408589,1770114638775,-300.0,9.331e-05,2]
[404408591,1770114638785,-250.0,9.36e-05,2]
[404408594,1770114638795,-1103.0,9.618e-05,2]
[404408596,1770114638805,-1600.0,9.927e-05,2]
[404408597,1770114638815,-267.46801116,0.0001,2]
[404408598,1770114638824,-552.38,0.0001,2]
[404408599,1770114638834,-151.0,0.0001,2]
[404408600,1770114638845,-151.0,0.0001,2]
[404408601,1770114638855,-151.0,0.0001,2]
[404408602,1770114638865,-151.0,0.0001,2]
[404408603,1770114638875,-151.0,0.0001,2]
[404408604,1770114638885,-151.0,0.0001,2]
[404408605,1770114638894,-151.0,0.0001,2]
[404408606,1770114638904,-151.0,0.0001,2]
[404408608,1770114638914,-151.0,0.0001,2]
[404408610,1770114638924,-151.0,0.0001,2]
[404408612,1770114638934,-151.0,0.0001,2]
[404408614,1770114638943,-151.0,0.0001,2]
[404408616,1770114638952,-151.0,0.0001,2]
[404408618,1770114638961,-151.0,0.0001,2]
[404408620,1770114638970,-151.0,0.0001,2]
[404408622,1770114638979,-151.0,0.0001,2]
[404408624,1770114638988,-151.0,0.0001,2]
[404408626,1770114638998,-151.0,0.0001,2]
[404408628,1770114639008,-151.0,0.0001,2]
[404408630,1770114639017,-151.0,0.0001,2]
[404408632,1770114639026,-150.01371244,0.0001,2]
[404408634,1770114639035,-1103.0,0.00010124,2]
[404408636,1770114639045,-2351.0,0.00010263,2]
[404408638,1770114639054,-433.0,0.00010263,2]
[404408640,1770114639064,-552.38,0.00010274,2]
[404408642,1770114639073,-552.38,0.00010548,2]
[404408644,1770114639082,-1103.0,0.00010657,2]
[404408646,1770114639091,-552.38,0.00010822,2]
[404408648,1770114639100,-3037.25077835,0.000109,2]
[404408650,1770114639111,-3037.25077829,0.000109,2]
[404408652,1770114639120,-1600.0,0.0001103,2]
[404408654,1770114639129,-552.38,0.00011096,2]
[404408656,1770114639138,-213.98995255,0.00011099,2]
[404408658,1770114639147,-213.98995252,0.00011099,2]
[404408660,1770114639157,-213.98995252,0.00011099,2]
[404408662,1770114639169,-14197.71725582,0.00011099,2]
[404408664,1770114639179,-14197.71725579,0.00011099,2]
[404408666,1770114639188,-14197.71725579,0.00011099,2]
[404408668,1770114639197,-14197.71725579,0.00011099,2]
[404408670,1770114639207,-3037.25077829,0.00011121,2]
[404408672,1770114639216,-150.01371244,0.00011166,2]
[404408674,1770114639225,-250.0,0.00011209,2]
[404408676,1770114639235,-1103.0,0.00011218,2]
[404408678,1770114639244,-18050.3,0.00011233,2]
[404408680,1770114639254,-3292.0,0.00011289,2]
[404408682,1770114639262,-736.0,0.00011289,2]
[404408684,1770114639271,-320.63,0.00011315,2]
[404408686,1770114639280,-213.98995252,0.00011354,2]
[404408688,1770114639290,-166.66,0.00011365,2]
[404408690,1770114639299,-552.38,0.0001137,2]
[404408692,1770114639308,-552.38,0.00011644,2]
[404408694,1770114639318,-14197.71725579,0.0001171,2]
[404408696,1770114639327,-237.76,0.00011736,2]
[404408698,1770114639336,-166.66,0.0001174,2]
[404408700,1770114639345,-1103.0,0.00011809,2]
[404408702,1770114639354,-552.38,0.00011918,2]
[404408704,1770114639363,-166.66,0.00012116,2]
[404408706,1770114639373,-1600.0,0.00012133,2]
[404408708,1770114639384,-552.38,0.00012192,2]
[404408710,1770114639394,-213.98995252,0.00012278,2]
[404408711,1770114639404,-237.76,0.00012388,2]
[404408713,1770114639417,-599.0,0.00012417,2]
[404408715,1770114639427,-4609.0,0.00012418,2]
[404408718,1770114639440,-1103.0,0.0001243,2]
[404408745,1770114639689,-552.38,0.00012466,2]
[404408747,1770114639701,-38.98408863,0.00012477,2]
[404408807,1770114640244,-2998.26668966,0.00012477,2]
[404408809,1770114640254,-166.66,0.00012491,2]
[404408811,1770114640271,-5407.11934131,0.000125,2]
[404408826,1770114640407,-1668.8510257,0.000125,2]
[404408833,1770114640462,-2342.35963299,0.000125,2]
[404408835,1770114640471,-1723.22048855,0.00012514,2]
[404408837,1770114640482,-12474.49676724,0.00012514,2]
[404408839,1770114640493,-193732.81044148,0.0001269,2]
[404408841,1770114640503,-552.38,0.0001274,2]
[404408843,1770114640512,-166.66,0.00012866,2]
[404408845,1770114640521,-4434.56277461,0.00013,2]
[404408847,1770114640529,-552.38,0.00013014,2]
[404408849,1770114640538,-237.76,0.0001304,2]
[404408851,1770114640548,-5354.65944007,0.0001305,2]
[404408853,1770114640557,-1103.0,0.00013084,2]
[404408854,1770114640568,-5394.28168771,0.00013155,2]
[404408856,1770114640577,-405.54303415,0.00013155,2]
[404408858,1770114640586,-380.20411265,0.00013192,2]
[404408860,1770114640595,-1003.3646687,0.00013192,2]
[404408862,1770114640604,-1770.0542082,0.00013192,2]
[404408864,1770114640613,-267.46801116,0.00013198,2]
[404408866,1770114640622,-213.98995252,0.00013203,2]
[404408868,1770114640631,-151.0,0.00013229,2]
[404408870,1770114640640,-151.0,0.00013229,2]
[404408872,1770114640649,-1600.0,0.00013236,2]
[404408874,1770114640658,-151.0,0.00013239,2]
[404408876,1770114640668,-151.0,0.00013239,2]
[404408879,1770114640677,-166.66,0.00013241,2]
[404408880,1770114640688,-2647.89523549,0.00013242,2]
[404408882,1770114640697,-552.38,0.00013288,2]
[404408884,1770114640706,-151.0,0.00013316,2]
[404408886,1770114640715,-151.0,0.00013316,2]
[404408888,1770114640724,-14197.71725579,0.00013317,2]
[404408890,1770114640733,-3240.0,0.00013425,2]
[404408892,1770114640742,-183.76045452,0.000135,2]
[404408894,1770114640751,-552.38,0.00013562,2]